[Event "German Championship Women 2022"]
[Site "Magdeburg"]
[Date "2022.08.18"]
[Round "6.7"]
[White "Wartenberg, Alissa"]
[Black "Fock, Sana"]
[Result "1-0"]
[ECO "B90"]
[WhiteElo "1632"]
[BlackElo "1807"]
[Annotator "NA RC"]
[PlyCount "155"]
[EventDate "2022.08.14"]
[EventType "swiss"]
[EventCountry "GER"]
[SourceTitle "playchess.com"]
[Source "ChessBase"]
[SourceQuality "1"]
[TimeControl "40/5400+30:1800+30"]

1. e4 {[%emt 0:00:02]} c5 {[%emt 0:00:05]} 2. Nf3 {[%emt 0:00:06]} d6 {[%emt 0:00:05]} 3. d4 {[%emt 0:00:04]} cxd4 {[%emt 0:00:06]} 4. Nxd4 {[%emt 0:00:06]} Nf6 {[%emt 0:00:06]} 5. Nc3 {[%emt 0:00:24]} a6 {[%emt 0:00:10]} 6. f3 {[%emt 0:00:05]} e5 {[%emt 0:00:14]} 7. Nb3 {[%emt 0:00:05]} Be7 {[%emt 0:00:25]} 8. Be3 {[%emt 0:00:09]} Be6 {[%emt 0:00:34]} 9. Qd2 {[%emt 0:00:21]} Nbd7 {[%emt 0:01:22]} 10. g4 {[%emt 0:04:55]} b5 {[%emt 0:02:56]} 11. h4 {[%emt 0:07:11]} b4 {[%emt 0:08:32]} 12. Na4 {[%emt 0:08:28]} a5 {[%emt 0:10:37]} 13. Qf2 {[%emt 0:03:24]} O-O {[%emt 0:13:43]} 14. h5 {[%emt 0:02:10]} Ne8 {[%emt 0:07:58]} 15. Bd3 {[%emt 0:10:51]} Bg5 {[%emt 0:05:43]} 16. O-O-O {[%emt 0:13:02]} Bxe3+ {[%emt 0:02:42]} 17. Qxe3 {[%emt 0:03:27]} Qc7 {[%emt 0:02:28]} 18. Nd2 {[%emt 0:03:02]} Qc6 {[%emt 0:03:28]} 19. b3 {[%emt 0:00:35]} Nc7 {[%emt 0:06:08]} 20. Nc4 {[%emt 0:07:42]} Nb5 {[%emt 0:06:39]} 21. Ncb6 {[%emt 0:06:39]} Nd4 {[%emt 0:08:37]} 22. Nd5 {[%emt 0:07:30]} Kh8 {[%emt 0:06:30]} 23. Rh2 {[%emt 0:11:10]} Nc5 {[%emt 0:03:18]} 24. Nxc5 {[%emt 0:00:42]} Qxc5 {[%emt 0:00:20]} 25. h6 {[%emt 0:04:25]} g6 {[%emt 0:01:09]} 26. Kb1 {[%emt 0:02:48]} Bxd5 {[%emt 0:00:43]} 27. exd5 {[%emt 0:00:16]} f6 {[%emt 0:03:42]} 28. Be4 {[%emt 0:01:43]} a4 {[%emt 0:01:00]} 29. Qd3 {[%emt 0:01:37]} f5 {[%emt 0:01:37]} 30. gxf5 {[%emt 0:00:05]} gxf5 {[%emt 0:00:24]} 31. Qe3 {[%emt 0:00:13]} fxe4 {[%emt 0:02:27]} 32. Qg5 {[%emt 0:00:10]} Qc7 {[%emt 0:01:23]} 33. Rg2 {[%emt 0:00:50]} Nf5 {[%emt 0:00:43]} 34. fxe4 {[%emt 0:00:31]} Qe7 {[%emt 0:00:20]} 35. exf5 {[%emt 0:00:16]} Qxg5 {[%emt 0:00:23]} 36. Rxg5 {[%emt 0:00:05]} Rf6 {[%emt 0:00:12]} 37. bxa4 {[%emt 0:01:05]} Rxa4 {[%emt 0:00:14]} 38. Rdg1 {[%emt 0:00:16]} Ra8 {[%emt 0:00:12]} 39. Rh5 {[%emt 0:00:11]} Raf8 {[%emt 0:00:29]} 40. Rf1 {[%emt 0:00:20]} Rc8 {[%emt 0:01:29]} 41. Rg1 {[%emt 0:33:17]} Rcf8 {[%emt 0:01:38]} 42. Rf1 {[%emt 0:00:00]} Rc8 {[%emt 0:02:06]} 43. Rf3 {[%emt 0:00:00]} e4 {[%emt 0:09:06]} 44. Re3 {[%emt 0:00:00]} Re8 {[%emt 0:00:55]} 45. Rh4 {[%emt 0:00:00]} Kg8 {[%emt 0:03:13]} 46. Rg4+ {[%emt 0:00:00]} Kf8 {[%emt 0:04:21]} 47. Rexe4 {[%emt 0:00:30]} Rxe4 {[%emt 0:00:21]} 48. Rxe4 {[%emt 0:00:05]} Rxf5 {[%emt 0:00:17]} 49. Rxb4 {[%emt 0:00:07]} Rxd5 {[%emt 0:00:15]} 50. Rb7 {[%emt 0:00:22]} Kg8 {[%emt 0:00:50]} 51. Rg7+ {[%emt 0:00:05]} Kh8 {[%emt 0:00:14]} 52. Rd7 {[%emt 0:00:05]} Kg8 {[%emt 0:01:19]} 53. Kc1 {[%emt 0:01:32]} Ra5 {[%emt 0:00:34]} 54. Rxd6 {[%emt 0:00:38]} Rxa2 {[%emt 0:00:38]} 55. Kd2 {[%emt 0:02:15]} Kf7 {[%emt 0:00:28]} 56. Rb6 {[%emt 0:00:18]} Ra4 {[%emt 0:01:29]} 57. Kd3 {[%emt 0:00:22]} Rh4 {[%emt 0:00:18]} 58. c4 Rh3+ 59. Kd4 {[%emt 0:00:45]} Rh5 {[%emt 0:03:26]} 60. c5 {[%emt 0:00:18]} Rh4+ {[%emt 0:00:29]} 61. Kd5 {[%emt 0:00:35]} Rh5+ {[%emt 0:00:25]} 62. Kc4 {[%emt 0:00:12]} Rh4+ {[%emt 0:00:20]} 63. Kb5 {[%emt 0:00:04]} Rh5 {[%emt 0:00:08]} 64. Rc6 {[%emt 0:00:16]} Rh1 {[%emt 0:00:21]} 65. Kb6 {[%emt 0:00:13]} Rb1+ {[%emt 0:00:32]} 66. Kc7 {[%emt 0:00:05]} Rc1 {[%emt 0:00:40]} 67. Kb7 {[%emt 0:01:45]} Re1 {[%emt 0:01:45]} 68. Rd6 {[%emt 0:00:19]} Re7+ {[%emt 0:01:21]} 69. Kb6 {[%emt 0:00:16]} Re1 {[%emt 0:00:43]} 70. c6 {[%emt 0:00:09]} Rb1+ {[%emt 0:00:40]} 71. Kc7 {[%emt 0:00:05]} Ke8 {[%emt 0:02:08]} 72. Rd7 {[%emt 0:00:26]} Ra1 {[%emt 0:00:11]} 73. Kc8 {[%emt 0:01:57]} Rc1 {[%emt 0:01:19]} 74. c7 Ra1 {[%emt 0:00:45]} 75. Rxh7 {[%emt 0:00:20]} Rb1 {[%emt 0:00:28]} 76. Rg7 {[%emt 0:00:19]} Kf8 {[%emt 0:00:22]} 77. Rd7 {[%emt 0:00:09]} Ke8 {[%emt 0:00:50]} 78. h7 1-0

[Event "German Championship Women 2022"]
[Site "Magdeburg"]
[Date "2022.08.18"]
[Round "6.8"]
[White "Just, Anita"]
[Black "Bluebaum, Johanna"]
[Result "1/2-1/2"]
[ECO "C14"]
[WhiteElo "1905"]
[BlackElo "2013"]
[Annotator "NA RC"]
[PlyCount "81"]
[EventDate "2022.08.14"]
[EventType "swiss"]
[EventCountry "GER"]
[SourceTitle "playchess.com"]
[Source "ChessBase"]
[SourceQuality "1"]
[TimeControl "40/5400+30:1800+30"]

1. e4 {[%emt 0:00:01]} e6 {[%emt 0:00:05]} 2. d4 {[%emt 0:00:05]} d5 {[%emt 0:00:05]} 3. Nc3 {[%emt 0:00:08]} Nf6 {[%emt 0:00:07]} 4. Bg5 {[%emt 0:00:05]} Be7 {[%emt 0:00:05]} 5. e5 {[%emt 0:00:05]} Nfd7 {[%emt 0:00:05]} 6. Bxe7 {[%emt 0:00:06]} Qxe7 {[%emt 0:00:05]} 7. f4 {[%emt 0:00:06]} a6 {[%emt 0:00:16]} 8. Nf3 {[%emt 0:00:11]} c5 {[%emt 0:00:07]} 9. Qd2 {[%emt 0:00:16]} Nc6 {[%emt 0:01:03]} 10. dxc5 {[%emt 0:00:26]} Nxc5 {[%emt 0:01:48]} 11. O-O-O {[%emt 0:00:35]} b5 {[%emt 0:09:03]} 12. Kb1 {[%emt 0:01:05]} b4 {[%emt 0:05:38]} 13. Ne2 $1 {[%emt 0:00:17]} ({Don't blunder} 13. Nxd5 $2 exd5 14. Qxd5 Bb7 $19) 13... Ne4 {[%emt 0:11:17]} 14. Qe3 {[%emt 0:01:29]} a5 {[%emt 0:06:50]} 15. c4 {[%emt 0:04:10]} bxc3 {[%emt 0:12:43]} 16. Nxc3 {[%emt 0:00:20]} Nxc3+ {[%emt 0:00:43]} 17. Qxc3 {[%emt 0:00:08]} Qb7 {[%emt 0:02:32]} 18. Nd4 {[%emt 0:10:42]} Nxd4 {[%emt 0:05:46]} 19. Rxd4 {[%emt 0:00:50]} O-O $1 {[%emt 0:00:54]} 20. Ra4 $15 {[%emt 0:09:04]} Qb6 {[%emt 0:03:47]} 21. Qd4 {[%emt 0:02:29]} Qc6 {[%emt 0:01:49]} 22. Ra3 {[%emt 0:02:16]} Ba6 {[%emt 0:04:15]} 23. Rc3 {[%emt 0:02:42]} Qb7 {[%emt 0:02:28]} 24. Bxa6 {[%emt 0:02:53]} Qxa6 {[%emt 0:00:41]} 25. Rhc1 {[%emt 0:02:28]} Rfc8 {[%emt 0:02:33]} 26. Rxc8+ {[%emt 0:10:03]} Rxc8 {[%emt 0:01:12]} 27. Rxc8+ {[%emt 0:02:22]} Qxc8 {[%emt 0:00:16]} 28. Qb6 {[%emt 0:02:52]} Qa8 {[%emt 0:06:17]} 29. a4 {[%emt 0:01:31]} h6 {[%emt 0:01:15]} 30. Qd4 {[%emt 0:14:46]} Qa6 {[%emt 0:02:15]} 31. Qd1 {[%emt 0:08:42]} Qc4 {[%emt 0:00:40]} 32. g3 {[%emt 0:00:48]} Kf8 {[%emt 0:04:21]} 33. Qc2 {[%emt 0:17:41]} Qf1+ {[%emt 0:01:56]} 34. Ka2 {[%emt 0:00:10]} Kg8 {[%emt 0:00:17]} 35. Qc8+ {[%emt 0:01:01]} Kh7 {[%emt 0:00:05]} 36. Qc2+ {[%emt 0:00:04]} Kg8 {[%emt 0:00:49]} 37. Qc8+ {[%emt 0:00:23]} Kh7 {[%emt 0:00:05]} 38. Qc2+ {[%emt 0:00:02]} Kg8 {[%emt 0:02:40]} 39. Qc8+ {[%emt 0:00:06]} Kh7 40. Qc2+ g6 41. Qc7 1/2-1/2

[Event "German Championship Women 2022"]
[Site "Magdeburg"]
[Date "2022.08.18"]
[Round "6.9"]
[White "Halas, Julia"]
[Black "Voigt, Anastasia"]
[Result "1-0"]
[ECO "D35"]
[WhiteElo "2012"]
[BlackElo "1694"]
[Annotator "TA"]
[PlyCount "75"]
[EventDate "2022.08.14"]
[EventType "swiss"]
[EventCountry "GER"]
[SourceTitle "playchess.com"]
[Source "ChessBase"]
[SourceQuality "1"]
[TimeControl "40/5400+30:1800+30"]

{[%evp 23,75,5,29,0,27,30,30,25,33,27,53,38,34,31,31,16,38,4,42,0,41,-18,0,0,-9,-21,-17,-19,-17,-18,0,0,149,149,298,289,285,147,166,155,293,300,312,320,404,411,1357,417,409,412,468,477,912,908]} 1. d4 {[%emt 0:00:03]} d5 {[%emt 0:00:03]} 2. c4 {[%emt 0:00:06]} e6 {[%emt 0:00:04]} 3. Nc3 {[%emt 0:00:05]} Nf6 {[%emt 0:00:05]} 4. cxd5 {[%emt 0:00:07]} exd5 {[%emt 0:00:04]} 5. Bg5 {[%emt 0:00:11]} Be7 {[%emt 0:00:05]} 6. e3 {[%emt 0:00:20]} c6 {[%emt 0:00:05]} 7. Bd3 {[%emt 0:00:14]} O-O {[%emt 0:00:08]} 8. Qc2 {[%emt 0:00:14]} Nbd7 {[%emt 0:00:05][%cal Bb8d7,Bd7f8,Bf8g6][%mdl 32]} 9. Nge2 {[%emt 0:00:50]} Re8 {[%emt 0:00:13]} 10. O-O {[%emt 0:00:18]} Nf8 {[%emt 0:00:07]} 11. f3 {[%emt 0:00:24]} Ng6 {[%emt 0:01:12] 11...g6 gains popularity.} 12. Rad1 {[%emt 0:10:31]} Be6 {[%emt 0:03:50]} (12... h6 $5 {[%cal Rh6g5]} 13. Bxf6 Bxf6 $11) 13. Kh1 {[%emt 0:08:00] [#] D36: Queen's Gambit Declined: Exchange Variation: Main line (5 Bg5 c6 6 Qc2).} Nd7 $146 {[%emt 0:05:04]} (13... Qc7 14. Bxf6 Bxf6 15. e4 dxe4 16. fxe4 Rad8 17. e5 Be7 18. h3 Kh8 19. Be4 Nf8 20. Nf4 Qb6 21. Nxe6 Nxe6) ({Predecessor:} 13... Qc7 14. Bxf6 Bxf6 15. e4 dxe4 16. fxe4 Rad8 17. e5 Be7 18. h3 Kh8 19. Be4 Nf8 20. Nf4 Qb6 21. Nxe6 Nxe6 {½-½ (60) Aleksandrov,A (2679)-Kharitonov,A (2561) Moscow 2004}) 14. Bxe7 {[%emt 0:01:12]} Qxe7 {[%emt 0:00:09]} 15. Ng3 {[%emt 0:24:35] White has an edge.} Nf6 {[%emt 0:05:26]} 16. h3 {[%emt 0:06:22]} Rac8 {[%emt 0:12:09]} 17. Qf2 {[%emt 0:10:39]} c5 {[%emt 0:02:33]} 18. Bb5 {[%emt 0:04:01]} Red8 {[%emt 0:00:21]} 19. f4 {[%emt 0:02:37]} Bd7 {[%emt 0:01:09]} 20. Bd3 {[%emt 0:03:29]} Re8 {[%emt 0:03:46]} 21. f5 {[%emt 0:00:49]} (21. e4 $5 dxe4 22. Bxe4 $14) 21... Nf8 {[%emt 0:01:21]} 22. Rde1 {[%emt 0:05:11]} (22. e4 $14 cxd4 23. Qxd4) 22... cxd4 {[%emt 0:03:32]} 23. exd4 {[%emt 0:00:09]} Qd6 {[%emt 0:00:25]} 24. Qf3 {[%emt 0:03:43]} Bc6 {[%emt 0:03:44]} 25. Nh5 {[%emt 0:10:20]} Nxh5 {[%emt 0:08:27]} 26. Qxh5 {[%emt 0:00:08]} Qg3 {[%emt 0:02:22]} 27. Rd1 {[%emt 0:03:17]} Re3 {[%emt 0:04:02]} (27... Nd7 $11 {keeps the balance.}) 28. Ne2 $1 $16 {[%emt 0:01:08]} Qc7 {[%emt 0:04:45]} (28... Qd6 $16) 29. f6 $1 $18 {[%emt 0:00:07] Black must now prevent Qg5.} (29. Qg5 Ree8 $14) 29... Ng6 {[%emt 0:01:49] [#]} 30. fxg7 {[%emt 0:00:11]} (30. Nf4 $1 $18 {[%mdl 512]}) 30... Kxg7 {[%emt 0:00:34]} 31. Qf5 {[%emt 0:01:03] Nf4 is the strong threat.} (31. Qg5 Qe7 32. Qf5 Bd7 $16) 31... Rce8 {[%emt 0:01:13]} (31... Rd8 $16 32. Nf4 (32. Qg5 Qe7 $16) 32... Qe7 33. Nh5+ Kh8) 32. Nf4 {[%emt 0:01:19] aiming for Nh5+.} Qe7 {[%emt 0:11:27] [#]} 33. Nh5+ $1 {[%emt 0:01:14]} ({Weaker is} 33. Nxd5 Bxd5 34. Qxd5 Rd8 $16) 33... Kf8 {[%emt 0:08:29]} 34. Nf6 {[%emt 0:00:11] Threatens to win with Qh5.} Rd8 {[%emt 0:00:28]} (34... Re6 $142 35. Nxe8 Qxe8) 35. Nxh7+ {[%emt 0:02:39]} (35. Qh5 $142 {[%cal Rh5h6]} Qe6 36. Nxh7+ Ke8 37. Ng5 Rxd3 38. Nxe6 Rxd1 39. Rxd1) 35... Kg7 {[%emt 0:00:06]} 36. Nf6 {[%emt 0:00:37][%cal Bh7f6,Bf6g4,Bg4e3][%mdl 32]} ({Less strong is} 36. Ng5 Rf8 $16) 36... Rd6 {[%emt 0:02:28][%cal Rd6f6]} 37. Ng4 {[%emt 0:00:42]} Bd7 {[%emt 0:01:14] [#]} (37... Rde6 $142 38. Nxe3 Rxe3) 38. Nxe3 $1 {[%emt 0:00:18] Weighted Error Value: White=0.33/Black=0.41} 1-0

[Event "German Championship Women 2022"]
[Site "Magdeburg"]
[Date "2022.08.18"]
[Round "6.10"]
[White "Spiel, Marianne"]
[Black "Storkebaum, Ulrike"]
[Result "0-1"]
[ECO "C83"]
[WhiteElo "1893"]
[BlackElo "1768"]
[Annotator "NA RC"]
[PlyCount "142"]
[EventDate "2022.08.14"]
[EventType "swiss"]
[EventCountry "GER"]
[SourceTitle "playchess.com"]
[Source "ChessBase"]
[SourceQuality "1"]
[TimeControl "40/5400+30:1800+30"]

1. e4 {[%emt 0:00:02]} e5 {[%emt 0:00:06]} 2. Nf3 {[%emt 0:00:06]} Nc6 {[%emt 0:00:04]} 3. Bb5 {[%emt 0:00:05]} a6 {[%emt 0:00:07]} 4. Ba4 {[%emt 0:00:05]} Nf6 {[%emt 0:00:09]} 5. O-O {[%emt 0:00:45]} Nxe4 {[%emt 0:00:29]} 6. d4 {[%emt 0:00:27]} b5 {[%emt 0:00:25]} 7. Bb3 {[%emt 0:00:26]} d5 {[%emt 0:00:11]} 8. dxe5 {[%emt 0:00:46]} Be6 {[%emt 0:00:29]} 9. c3 {[%emt 0:01:16]} Be7 {[%emt 0:01:21]} 10. Qe2 {[%emt 0:04:35]} Nc5 {[%emt 0:02:50]} 11. Bc2 {[%emt 0:00:45]} O-O {[%emt 0:01:19]} 12. Bf4 {[%emt 0:09:08]} Qd7 {[%emt 0:07:59]} 13. Nbd2 {[%emt 0:01:30]} d4 {[%emt 0:01:41]} 14. cxd4 {[%emt 0:41:32]} Nxd4 {[%emt 0:00:17]} 15. Nxd4 {[%emt 0:00:12]} Qxd4 {[%emt 0:00:18]} 16. Be3 {[%emt 0:01:19]} Qxe5 $15 {[%emt 0:03:30]} 17. Nf3 {[%emt 0:02:42]} Qh5 {[%emt 0:03:27]} 18. Bxc5 {[%emt 0:21:41]} Bxc5 {[%emt 0:00:45]} 19. Rfe1 {[%emt 0:00:49]} Bd6 {[%emt 0:03:36]} 20. h3 {[%emt 0:01:18]} Rfe8 {[%emt 0:10:18]} 21. Qd2 {[%emt 0:03:23]} Rad8 {[%emt 0:04:47]} 22. Qc3 {[%emt 0:01:17]} Bd5 {[%emt 0:06:28]} 23. Bd1 {[%emt 0:03:05]} Rxe1+ {[%emt 0:02:04]} 24. Nxe1 {[%emt 0:01:25]} Qg6 {[%emt 0:07:32]} 25. Bf3 {[%emt 0:00:20]} Be6 {[%emt 0:04:46]} 26. Kf1 {[%emt 0:02:18]} b4 {[%emt 0:01:28]} 27. Qe3 {[%emt 0:01:00]} Qf6 {[%emt 0:02:53]} 28. Nd3 {[%emt 0:01:16]} Bc4 {[%emt 0:01:46]} 29. Rd1 {[%emt 0:00:47]} Bb5 {[%emt 0:01:37]} 30. b3 {[%emt 0:00:16]} Re8 {[%emt 0:05:17]} 31. Qd2 {[%emt 0:00:26]} Qd4 {[%emt 0:03:44]} 32. Be2 {[%emt 0:00:40]} a5 {[%emt 0:04:46]} 33. Nc1 {[%emt 0:00:30]} Bxe2+ {[%emt 0:04:46]} 34. Nxe2 {[%emt 0:00:05]} Qxd2 {[%emt 0:02:46]} 35. Rxd2 {[%emt 0:00:02]} Re5 {[%emt 0:01:23]} 36. Rc2 {[%emt 0:00:31]} Rd5 {[%emt 0:00:28]} 37. g3 {[%emt 0:00:22]} Kf8 {[%emt 0:01:16]} 38. Nc1 {[%emt 0:00:17]} Ke7 {[%emt 0:02:11]} 39. Ke2 {[%emt 0:00:15]} Kd7 {[%emt 0:00:56]} 40. Nd3 {[%emt 0:00:23]} Rf5 {[%emt 0:01:22]} 41. Rc4 {[%emt 0:05:24]} Rb5 {[%emt 0:01:07]} 42. Rh4 {[%emt 0:05:11]} h6 {[%emt 0:01:15]} 43. Rg4 {[%emt 0:03:33]} g6 {[%emt 0:01:00]} 44. Rc4 {[%emt 0:02:06]} f5 {[%emt 0:01:55]} 45. Nb2 {[%emt 0:01:34]} Ke6 {[%emt 0:05:01]} 46. Rc2 {[%emt 0:00:52]} Rb8 {[%emt 0:05:56]} 47. Nc4 {[%emt 0:00:41]} Ra8 {[%emt 0:00:18]} 48. Nxd6 {[%emt 0:00:45]} cxd6 {[%emt 0:02:25]} 49. Kd3 {[%emt 0:00:29]} Kd5 {[%emt 0:01:22]} 50. Rc7 {[%emt 0:03:20]} a4 {[%emt 0:00:22]} 51. Rc4 {[%emt 0:01:56]} axb3 {[%emt 0:00:37]} 52. axb3 {[%emt 0:00:03]} Rb8 {[%emt 0:02:29]} 53. Ke3 {[%emt 0:00:20]} Re8+ {[%emt 0:01:14]} 54. Kd3 {[%emt 0:01:36]} Re4 {[%emt 0:00:41]} 55. Rc1 {[%emt 0:00:20]} g5 {[%emt 0:02:22]} 56. Ra1 {[%emt 0:00:18]} Rd4+ {[%emt 0:02:29]} 57. Ke2 {[%emt 0:02:30]} f4 {[%emt 0:05:00]} 58. Ra5+ {[%emt 0:00:45]} Ke6 {[%emt 0:00:37]} 59. Ra1 {[%emt 0:01:34]} Ke5 {[%emt 0:02:07]} 60. Ra5+ {[%emt 0:01:37]} Rd5 {[%emt 0:01:05]} 61. Ra1 {[%emt 0:00:43]} Rc5 {[%emt 0:00:30]} 62. Rb1 {[%emt 0:01:29]} fxg3 {[%emt 0:00:37]} 63. fxg3 {[%emt 0:00:03]} Rc3 {[%emt 0:00:16]} 64. Kf2 {[%emt 0:00:07]} d5 {[%emt 0:00:21]} 65. Re1+ {[%emt 0:02:04]} Kf5 {[%emt 0:00:49]} 66. Rb1 {[%emt 0:02:28]} d4 {[%emt 0:00:25]} 67. Kg2 {[%emt 0:03:10]} Ke4 {[%emt 0:00:24]} 68. h4 {[%emt 0:00:10]} g4 {[%emt 0:00:23]} 69. Re1+ {[%emt 0:00:42]} Re3 {[%emt 0:00:22]} 70. Rb1 {[%emt 0:00:27]} Re2+ {[%emt 0:00:35]} 71. Kf1 {[%emt 0:00:42]} d3 {[%emt 0:00:48]} 0-1

[Event "German Championship Women 2022"]
[Site "Magdeburg"]
[Date "2022.08.18"]
[Round "6.11"]
[White "Perez Celis, Alba"]
[Black "Petersen, Sophie"]
[Result "1-0"]
[ECO "B51"]
[WhiteElo "1816"]
[BlackElo "1597"]
[Annotator "NA RC"]
[PlyCount "57"]
[EventDate "2022.08.14"]
[EventType "swiss"]
[EventCountry "GER"]
[SourceTitle "playchess.com"]
[Source "ChessBase"]
[SourceQuality "1"]
[TimeControl "40/5400+30:1800+30"]

1. e4 {[%emt 0:01:56]} c5 {[%emt 0:00:05]} 2. Nf3 {[%emt 0:00:21]} d6 {[%emt 0:00:11]} 3. Bb5+ {[%emt 0:00:20]} Nd7 {[%emt 0:00:07]} 4. c3 {[%emt 0:00:17]} Ngf6 {[%emt 0:01:09]} 5. Qe2 {[%emt 0:00:25]} a6 {[%emt 0:02:34]} 6. Ba4 {[%emt 0:00:15]} b5 {[%emt 0:02:43]} 7. Bc2 {[%emt 0:00:07]} Bb7 {[%emt 0:00:25]} 8. d4 {[%emt 0:00:52]} Rc8 {[%emt 0:08:22]} 9. O-O {[%emt 0:02:29]} e6 {[%emt 0:03:59]} 10. a4 {[%emt 0:20:52]} b4 {[%emt 0:07:26]} 11. Rd1 {[%emt 0:04:32]} Be7 {[%emt 0:05:00]} 12. e5 {[%emt 0:26:03]} dxe5 {[%emt 0:09:49]} 13. dxe5 {[%emt 0:00:18]} Nd5 {[%emt 0:01:39]} 14. c4 {[%emt 0:03:13]} N5b6 {[%emt 0:07:28]} 15. a5 {[%emt 0:00:16]} Na8 {[%emt 0:02:47]} 16. Bf4 {[%emt 0:03:56]} g5 {[%emt 0:08:48]} 17. Be3 {[%emt 0:03:10]} Qc7 {[%emt 0:07:06]} 18. Ba4 {[%emt 0:06:40]} Bc6 {[%emt 0:00:32]} 19. Bxc6 {[%emt 0:01:14]} Qxc6 {[%emt 0:00:12]} 20. Bxg5 {[%emt 0:02:40]} Bxg5 {[%emt 0:05:39]} 21. Nxg5 {[%emt 0:00:07]} Rg8 {[%emt 0:01:33]} 22. Ne4 {[%emt 0:00:54]} Ke7 {[%emt 0:02:09]} 23. f4 {[%emt 0:06:04]} Rcd8 {[%emt 0:05:07]} 24. Nbd2 {[%emt 0:01:02]} Nc7 {[%emt 0:02:03]} 25. Nd6 {[%emt 0:03:11]} Ne8 {[%emt 0:01:51]} 26. N2e4 {[%emt 0:00:24]} Nxd6 {[%emt 0:03:06]} 27. Rxd6 {[%emt 0:00:41]} Qb7 {[%emt 0:00:29]} 28. Rad1 {[%emt 0:00:35]} Qc8 {[%emt 0:04:15]} 29. Qh5 {[%emt 0:02:24]} 1-0

[Event "German Championship Women 2022"]
[Site "Magdeburg"]
[Date "2022.08.18"]
[Round "6.12"]
[White "Heil, Marina"]
[Black "Mader, Lena"]
[Result "1/2-1/2"]
[ECO "A16"]
[WhiteElo "1926"]
[BlackElo "1826"]
[Annotator "NA RC"]
[PlyCount "142"]
[EventDate "2022.08.14"]
[EventType "swiss"]
[EventCountry "GER"]
[SourceTitle "playchess.com"]
[Source "ChessBase"]
[SourceQuality "1"]
[TimeControl "40/5400+30:1800+30"]

1. c4 {[%emt 0:00:02]} Nf6 {[%emt 0:00:04]} 2. Nc3 {[%emt 0:00:05]} g6 {[%emt 0:00:04]} 3. g3 {[%emt 0:00:05]} Bg7 {[%emt 0:00:05]} 4. Bg2 {[%emt 0:00:07]} d6 {[%emt 0:00:21]} 5. e4 {[%emt 0:00:22]} e5 {[%emt 0:00:18]} 6. Nge2 {[%emt 0:00:17]} Nc6 {[%emt 0:00:14]} 7. d3 {[%emt 0:00:17]} O-O {[%emt 0:00:10]} 8. O-O {[%emt 0:00:06]} Bg4 {[%emt 0:01:11] 8...Nd7 is setting a new trend.} 9. f3 {[%emt 0:00:44]} Be6 {[%emt 0:00:46]} 10. Nd5 {[%emt 0:02:12]} Ne7 {[%emt 0:02:10]} 11. Be3 {[%emt 0:09:51] [#]} Nd7 $146 {[%emt 0:04:00]} ({Predecessor:} 11... c6 $11 12. Nxe7+ Qxe7 13. Rb1 d5 14. Qc1 dxc4 15. dxc4 Rfd8 16. b3 b6 17. Qc2 Rd7 {0-1 (60) Kemendi,D (1800)-Nemeth,G (1987) Balatonlelle 2013}) 12. d4 {[%emt 0:05:18]} Nb6 {[%emt 0:06:46]} 13. b3 {[%emt 0:02:55]} f5 {[%emt 0:16:14]} 14. Ndc3 {[%emt 0:12:27]} Nd7 {[%emt 0:04:36]} (14... fxe4 $14 15. fxe4 Rxf1+ 16. Qxf1 Qd7) 15. Qc2 {[%emt 0:06:13]} Rb8 {[%emt 0:22:22]} 16. d5 {[%emt 0:03:10]} Bf7 {[%emt 0:00:10]} 17. Bxa7 {[%emt 0:00:12]} Ra8 {[%emt 0:00:06]} 18. Be3 {[%emt 0:00:22]} Nf6 {[%emt 0:01:48]} 19. b4 {[%emt 0:05:24]} Be8 {[%emt 0:09:12]} 20. a4 {[%emt 0:06:49]} Bd7 {[%emt 0:02:11]} 21. Rfb1 {[%emt 0:07:13]} fxe4 {[%emt 0:01:03]} 22. fxe4 {[%emt 0:02:59]} Ng4 {[%emt 0:00:48]} 23. Bd2 {[%emt 0:01:23]} Nf2 {[%emt 0:04:42]} 24. Nd1 {[%emt 0:04:05]} Nh3+ {[%emt 0:01:03]} 25. Kh1 {[%emt 0:00:34]} Rf6 {[%emt 0:04:22]} 26. Ng1 {[%emt 0:04:56]} Qf8 {[%emt 0:06:21]} 27. Be3 {[%emt 0:06:44]} Nxg1 {[%emt 0:07:05]} 28. Kxg1 {[%emt 0:00:37]} Bh6 {[%emt 0:00:38]} 29. a5 {[%emt 0:02:03]} Bg4 {[%emt 0:02:10]} 30. Qd2 {[%emt 0:01:06]} Bxe3+ {[%emt 0:01:19]} 31. Nxe3 {[%emt 0:00:26]} Qh6 {[%emt 0:01:00]} 32. Rf1 {[%emt 0:03:02]} Rxf1+ {[%emt 0:00:51]} 33. Rxf1 {[%emt 0:00:06]} Bh3 {[%emt 0:00:28]} 34. Qf2 {[%emt 0:00:46]} Bxg2 {[%emt 0:00:46]} 35. Qf7+ {[%emt 0:02:09]} Kh8 {[%emt 0:00:11]} 36. Nxg2 {[%emt 0:00:27]} Qg7 {[%emt 0:00:43]} 37. Qf2 {[%emt 0:01:47]} Ng8 {[%emt 0:01:07]} 38. Ne1 {[%emt 0:03:39]} Nh6 {[%emt 0:00:11]} 39. h3 {[%emt 0:00:21]} Kg8 {[%emt 0:00:17]} 40. Nd3 {[%emt 0:00:52]} Nf7 {[%emt 0:00:42]} 41. Kg2 {[%emt 0:31:33]} Ng5 {[%emt 0:31:16]} 42. Qe3 {[%emt 0:00:09]} h6 {[%emt 0:00:00]} 43. c5 {[%emt 0:00:00]} Qd7 {[%emt 0:00:00]} 44. g4 {[%emt 0:00:00]} Kg7 {[%emt 0:00:00]} 45. Kg3 {[%emt 0:00:00]} Nh7 $18 {[%emt 0:00:00]} (45... Qb5 $16) 46. Rc1 {[%emt 0:00:00]} Rf8 {[%emt 0:00:00]} 47. cxd6 {[%emt 0:00:00]} cxd6 {[%emt 0:00:00]} 48. Qb6 {[%emt 0:00:00]} Rf7 {[%emt 0:00:00]} 49. b5 {[%emt 0:00:00]} Ng5 {[%emt 0:00:00]} 50. Nf2 {[%emt 0:00:00]} h5 {[%emt 0:00:00]} 51. a6 {[%emt 0:00:00]} bxa6 {[%emt 0:00:00]} 52. bxa6 {[%emt 0:00:00]} hxg4 {[%emt 0:00:00]} 53. hxg4 {[%emt 0:00:00]} Qa4 {[%emt 0:00:00]} 54. Rc7 {[%emt 0:00:00]} Nxe4+ {[%emt 0:00:00]} 55. Nxe4 {[%emt 0:00:00]} Qxe4 {[%emt 0:00:00]} 56. Rxf7+ {[%emt 0:00:00]} Kxf7 {[%emt 0:00:00]} 57. Qc7+ {[%emt 0:00:00]} Kg8 {[%emt 0:00:00]} 58. Qd8+ {[%emt 0:00:00]} Kg7 {[%emt 0:00:00]} 59. Qe7+ {[%emt 0:00:00]} Kg8 {[%emt 0:00:16]} 60. Kh4 {[%emt 0:00:00]} Qe1+ {[%emt 0:05:45]} 61. Kg5 {[%emt 0:00:00]} Qe3+ {[%emt 0:00:08]} 62. Kxg6 {[%emt 0:00:00]} Qe4+ {[%emt 0:00:30]} 63. Kh5 {[%emt 0:00:00]} Qh1+ {[%emt 0:00:12]} 64. Kg6 {[%emt 0:00:00]} Qe4+ {[%emt 0:00:05]} 65. Kf6 {[%emt 0:00:00]} Qf4+ {[%emt 0:00:31]} 66. Ke6 {[%emt 0:00:00]} Qxg4+ {[%emt 0:00:37]} 67. Kxd6 {[%emt 0:00:00]} Qb4+ {[%emt 0:00:26]} 68. Ke6 {[%emt 0:00:00]} Qg4+ {[%emt 0:00:49]} 69. Kxe5 {[%emt 0:00:03]} Qe2+ {[%emt 0:00:30]} 70. Kd6 {[%emt 0:00:06]} Qxa6+ {[%emt 0:00:06]} 71. Kd7 {[%emt 0:00:13]} Qb5+ {[%emt 0:00:50]} 1/2-1/2